Cogmind - Beta 16 @@@ ROGUE MODE // 2025.12.23 @ 09:37:32 Player: PE-P51 Result: Destroyed by 3U-4RR(R) with Subdweller Laser Performance ------------- Evolutions (0) 0 Regions Visited (2) 400 Robots Destroyed (42) 210 Value Destroyed (1057) 1057 Prototype IDs (12) 240 Alien Tech Used (0) 0 Bonus (0) 0 TOTAL SCORE: 1907 Bonus ------- None Cogmind --------- Core Integrity 0/250 Matter 300/300 Energy 200/200 System Corruption 0% Temperature Cool (10) Movement Rolling (110) Location -10/Subcaves Parts ------- > --- POWER (1) -------- Subdweller Power Source > --- PROPULSION (2) --- Subdweller Monowheel Subdweller Monowheel > --- UTILITY (2) ------ Large Storage Unit Makeshift Light Armor Plating > --- WEAPON (2) ------- Spread Laser Subdweller Beam Cannon > --- INVENTORY (15) --- Subdweller Power Source Light Treads Subdweller Monowheel Subdweller Monowheel Flightbrick Scrap Shield Spread Laser Battle Cannon Subdweller Shrapnel Launcher Datajack Ripper Peak State ------------ > --- POWER ------------ Subdweller Power Source > --- PROPULSION ------- Subdweller Monowheel Subdweller Monowheel > --- UTILITY ---------- Large Storage Unit Makeshift Light Armor Plating > --- WEAPON ----------- Spread Laser Subdweller Beam Cannon > --- INVENTORY -------- Subdweller Power Source Light Treads Subdweller Monowheel Subdweller Monowheel Subdweller Monowheel Flightbrick High-capacity Matter Pod Spread Laser Battle Cannon Subdweller Shrapnel Launcher Datajack Hammer [Rating: 20] Favorites ----------- Power Ion Engine Engine Ion Engine Power Core Light Nuclear Core Propulsion Light Treads Treads Light Treads Leg Aluminum Leg Wheel Subdweller Monowheel Utility Large Storage Unit Device Improved Heat Sink Storage Large Storage Unit Protection Scrap Shield Weapon Heavy Assault Rifle Energy Gun Spread Laser Energy Cannon Subdweller Beam Cannon Ballistic Gun Heavy Assault Rifle Impact Weapon Hammer Special Melee Weapon Datajack Build | -11 -10 -10 ------- Run | Yrd Mat Sub Slots Evolved . | . . . Power . | . . . Propulsion . | . . . Utility . | . . . Weapon . | . . . Parts Attached 33 | . 11 22 Power 6 | . 3 3 Engine 5 | . 2 3 Core 1 | . 1 . Reactor . | . . . Propulsion 9 | . 2 7 Treads 2 | . . 2 Leg 2 | . 2 . Wheel 5 | . . 5 Hover . | . . . Flight . | . . . Utility 7 | . 2 5 Device 3 | . 1 2 Storage 1 | . 1 . Processor . | . . . Hackware . | . . . Protection 3 | . . 3 Artifact . | . . . Weapon 11 | . 4 7 Energy Gun 3 | . . 3 Energy Cannon 1 | . . 1 Ballistic Gun 5 | . 3 2 Ballistic Cannon . | . . . Launcher . | . . . Special Weapon . | . . . Impact Weapon 1 | . . 1 Slashing Weapon . | . . . Piercing Weapon . | . . . Special Melee Weapon 1 | . 1 . Unidentified Prototypes . | . . . Parts Lost 6 | . 1 5 Power 2 | . 1 1 Propulsion 1 | . . 1 Utility 1 | . . 1 Weapon 2 | . . 2 Highest Loss Streak 3 | . 1 3 To Critical Strikes . | . . . Average Backups 9 | . 13 7 Power 1 | . 2 . Propulsion 1 | . 2 1 Utility 1 | . 2 . Weapon 4 | . 6 3 Tool/Special . | . . . Unused Backups 25 | . 13 12 Power 4 | . 3 1 Propulsion 4 | . 1 3 Utility 6 | . 3 3 Weapon 11 | . 6 5 Tool/Special . | . . . Average Slot Usage (%) 93 | . 98 91 Engine 11 | . 7 12 Core 2 | . 6 . Treads 12 | . . 18 Leg 10 | . 27 1 Wheel 4 | . . 7 Device 8 | . 12 7 Storage 10 | . 14 8 Protection 4 | . . 6 Energy Gun 3 | . . 5 Energy Cannon 1 | . . 2 Ballistic Gun 20 | . 27 17 Impact Weapon 1 | . . 2 Peak Build Rating 20 | . 15 20 Average Rating 13 | . 12 13 On Entrance 8 | 6 6 13 Avg Prop Armor Cover (%) 7 | . . 7 Naked Turns . | . . . Heaviest Build 40 | 12 32 40 Greatest Support 40 | 20 20 40 Greatest Overweight (x) 1 | . 1 1 Average Overweight (x) . | . . . Largest Inventory Capacity 15 | . 15 15 Average Capacity 11 | . 14 10 Most Carried 15 | . 15 15 Average Carried 10 | . 13 9 Final Capacity 15 | 8 15 15 Final Carried 15 | 6 15 15 Class Distribution -------------------- 100% | Mutant Dominant Class ---------------- Mutant | -10/Materials Mutant | -10/Subcaves Resources | -11 -10 -10 ----------- Run | Yrd Mat Sub Matter Collected 1347 | 169 501 677 Remotely . | . . . Salvage Created 1202 | . 561 641 Parts 90 | . 43 47 Haulers Intercepted 2 | . 2 . Recyclers Shooed 1 | . 1 . Parts Field Recycled . | . . . Retrieved Matter . | . . . Parts Self-Destructed 11 | . . 11 Prevented . | . . . Parts Restored . | . . . Kills | -11 -10 -10 ------- Run | Yrd Mat Sub Combat Hostiles Destroyed 32 | . 10 22 Guns 22 | . 10 12 Cannons 7 | . . 7 Classes Destroyed 8 | . 7 1 Worker 3 | . 3 . Builder 1 | . 1 . Hauler 2 | . 2 . Operator 3 | . 3 . Watcher 1 | . 1 . Swarmer 9 | . 3 6 Grunt 7 | . 7 . Subdweller 16 | . . 16 Best Kill Streak 4 | . 4 4 Combat Bots Only 4 | . 3 4 Max Kills in Single Turn 2 | . 1 2 Gunslinging . | . . . Exploded . | . . . Melee . | . . . Uniques/NPCs Destroyed . | . . . Combat | -11 -10 -10 -------- Run | Yrd Mat Sub Hostile Shots Fired 167 | . 45 122 Missed 56 | . 16 40 Hits 111 | . 29 82 Projectile 111 | . 29 82 AOE 3 | . . 3 Critical Strikes 1 | . . 1 Damage Taken 1872 | . 324 1548 Core 264 | . 84 180 Absorbed by Shields . | . . . Regen/Repaired (Parts) 81 | . 81 . Core Remaining (%) 100 | 100 . . Volleys Fired 109 | . 55 54 Largest 2 | . 2 2 Hottest 145 | . 46 145 Shots Fired 212 | . 110 102 Gun 190 | . 110 80 Cannon 22 | . . 22 Launcher . | . . . Special . | . . . Kinetic 161 | . 110 51 Thermal 51 | . . 51 Explosive . | . . . Electromagnetic . | . . . Robot Hit Streak 21 | . 11 21 Robot Miss Streak 5 | . 3 5 Penetration Max . | . . . Secondary Targets 3 | . . 3 Max Gunslinging Chain 1 | . . 1 Shots Hit Robots 153 | . 70 83 Core Hits 72 | . 33 39 Critical Kills 2 | . 2 . Critical Parts Destroyed 2 | . . 2 Critical Strikes 7 | . 2 5 Destroy 2 | . 2 . Smash 5 | . . 5 Melee Attacks 60 | . . 60 Impact 60 | . . 60 Slashing . | . . . Piercing . | . . . Sneak Attacks . | . . . Combat Hostiles . | . . . Follow-up Attacks . | . . . Damage Inflicted 2552 | . 1026 1526 Guns 1870 | . 1004 866 Cannons 340 | . . 340 Explosions . | . . . Melee 320 | . . 320 Ramming 22 | . 22 . Kinetic 1592 | . 1004 588 Thermal 618 | . . 618 Explosive . | . . . Electromagnetic . | . . . Impact 320 | . . 320 Slashing . | . . . Piercing . | . . . Highest Corruption . | . . . Average Corruption . | . . . Corruption Purged . | . . . Corruption Blocked . | . . . Overload Shots . | . . . Overflow Damage 78 | . . 78 Projectiles 7 | . . 7 Explosions . | . . . Melee 71 | . . 71 Knockbacks . | . . . Impact . | . . . Kinetic . | . . . Secondary . | . . . Self-Inflicted Damage . | . . . Shots . | . . . Rammed . | . . . Targets Rammed 9 | . 9 . Kicked 9 | . 9 . Crushed . | . . . Highest Temperature 135 | . 2 135 Average Temperature 31 | . 2 32 Received Heat Transfer 372 | . 162 210 Siege Activations . | . . . Martial Activations . | . . . Shielding Activations . | . . . Robots Disrupted . | . . . Combat Hostiles . | . . . Robots Corrupted 3 | . . 3 Combat Hostiles 3 | . . 3 Parts Fried 3 | . . 3 Impact Corruptions 4 | . . 4 Robots Melted . | . . . Combat Hostiles . | . . . Parts Melted 1 | . . 1 Heat Transferred 821 | . . 821 Parts Sabotaged . | . . . Parts Stolen . | . . . Parts Stripped . | . . . Power Chain Reactions . | . . . Alert | -11 -10 -10 ------- Run | Yrd Mat Sub Maximum Alert Level . | . . . Low Security (%) 100 | . 100 . Level 1 . | . . . Level 2 . | . . . Level 3 . | . . . Level 4 . | . . . Level 5 . | . . . High Security . | . . . Max Security . | . . . Peak Influence 92 | . 92 . Initial . | . . . Average 16 | . 16 . Influence Increases 502 | . 342 160 Destroy 0b10 Robot/C 320 | . 200 120 Destroy 0b10 Robot/NC 50 | . 50 . Destroy Leader 66 | . 56 10 Trap Triggered on 0b10 10 | . 10 . Successful Hack 7 | . 7 . Destroy Structure 4 | . 4 . Lose Combat Pursuer 45 | . 15 30 Influence Decreases 453 | . 289 164 Entered New Map 26 | . . 26 Time Decay 417 | . 289 128 Lost Part 10 | . . 10 Squads Dispatched 3 | . 3 . Investigation 1 | . 1 . Extermination . | . . . Reinforcement 2 | . 2 . Assault . | . . . Garrison . | . . . Intercept . | . . . Searches Triggered . | . . . Construction Impeded . | . . . Haulers Reinforced . | . . . Active Scanning Responses . | . . . Cargo Convoy Interrupts . | . . . Stealth | -11 -10 -10 --------- Run | Yrd Mat Sub Distress Signals 1 | . 1 . Communications Jammed . | . . . Distress Signals . | . . . Times Spotted 52 | . 26 26 Peak Tracking Total 5 | . 3 5 Tactical Retreats 2 | . 1 1 Traps | -11 -10 -10 ------- Run | Yrd Mat Sub Traps Triggered 2 | . . 2 Indirectly . | . . . Trap Hack Attempts 9 | . 9 . Triggered . | . . . Disarmed 4 | . 4 . Reprogrammed 1 | . 1 . Reused 1 | . 1 . Traps Extracted . | . . . Installed . | . . . Triggered 1 | . 1 . Machines | -11 -10 -10 ---------- Run | Yrd Mat Sub Machines Disabled 1 | . . 1 Max in Single Turn 1 | . . 1 Machines Repaired . | . . . Machines Dismantled . | . . . Machines Sabotaged . | . . . Overloaded Fab Kills . | . . . Hacking | -11 -10 -10 --------- Run | Yrd Mat Sub Machines Accessed 11 | . 9 2 Terminals 6 | . 6 . Fabricators . | . . . Repair Stations 1 | . 1 . Recycling Units 2 | . 2 . Scanalyzers . | . . . Garrison Access . | . . . Total Hacks 30 | . 25 5 Successful 17 | . 12 5 Failed 13 | . 13 . Catastrophic 1 | . 1 . Database Lockouts . | . . . Manual 9 | . 9 . Terminals 16 | . 16 . Fabricators . | . . . Repair Stations 6 | . 6 . Recycling Units 3 | . 3 . Scanalyzers . | . . . Garrison Access . | . . . Terminal Hacks 11 | . 6 5 Record 4 | . . 4 Locate Traps 2 | . 2 . Disarm Traps 1 | . 1 . Transport Status 1 | . 1 . Zone Layout 2 | . 2 . Proto ID Catalog 1 | . . 1 Fabricator Hacks . | . . . Repair Station Hacks 4 | . 4 . Scan Component 2 | . 2 . Repair 2 | . 2 . Recycling Unit Hacks 2 | . 2 . Retrieve Components 2 | . 2 . Scanalyzer . | . . . Garrison Access Hacks . | . . . Unauthorized Hacks . | . . . Terminals . | . . . Fabricators . | . . . Repair Stations . | . . . Recycling Units . | . . . Scanalyzers . | . . . Garrison Access . | . . . Data Cores Recovered 1 | . 1 . Used . | . . . Hacking Detections 8 | . 8 . Full Trace Events 3 | . 3 . Feedback Events . | . . . Feedback Blocked . | . . . Robot Schematics Acquired . | . . . Robots Built . | . . . Authchips . | . . . Time . | . . . Total Robot Build Rating . | . . . Part Schematics Acquired . | . . . Parts Built . | . . . Authchips . | . . . Time . | . . . Total Part Build Rating . | . . . Part Studies Acquired . | . . . Parts Repaired 2 | . 2 . Time 52 | . 52 . Parts Recycled . | . . . Recycled Matter . | . . . Retrieved Matter . | . . . Retrieved Components 10 | . 10 . Parts Scanalyzed . | . . . Part Schematics Acquired . | . . . Parts Damaged . | . . . Bothacking | -11 -10 -10 ------------ Run | Yrd Mat Sub Used RIF Installer . | . . . Robots Hacked . | . . . Non-combat . | . . . Combat . | . . . Robot Hacks Applied . | . . . Relay Couplers Released . | . . . Fabnet Peak Effective % . | . . . Robots Rewired . | . . . Allies Hacked . | . . . Hacks Repelled . | . . . Allies | -11 -10 -10 -------- Run | Yrd Mat Sub Total Allies . | . . . Largest Group . | . . . Highest-Rated Group . | . . . Highest-Rated Ally . | . . . Total Orders . | . . . Ally Attacks . | . . . Total Damage . | . . . Kills . | . . . Allies Corrupted . | . . . Allies Melted . | . . . Intel | -11 -10 -10 ------- Run | Yrd Mat Sub Active Infowar (turns) 1709 | . . 1709 Optics 1709 | . . 1709 Robot Analysis Total . | . . . Derelict Logs Recovered 2 | . . 2 Drone Launches . | . . . Drone Recoveries . | . . . Exploration | -11 -10 -10 ------------- Run | Yrd Mat Sub Turns Passed 5717 | . 1872 3845 Spaces Moved 3175 | 1 856 2318 Core . | . . . Treads 1467 | . . 1467 Legs 963 | 1 856 106 Wheels 745 | . . 745 Hover . | . . . Flight . | . . . Fastest Speed 110 | 120 120 110 Average Speed 156 | 120 181 147 Slowest Speed 240 | 120 190 240 Overloaded Moves . | . . . Propulsion Burnouts . | . . . Robots Hopped . | . . . Potential Cave-ins . | . . . Cave-ins Triggered . | . . . Exploration Rate (%) 65 | 2 98 96 Regions Visited 2 Branch Regions 1 Pre-discovered Areas . | . . . Known Exits Taken . | . . . Unknown Exits Taken 2 | 1 1 . Scrap Searched 13 | . . 13 Spaces Dug 3 | . . 3 Terrain Destroyed 4 | . . 4 Melee 3 | . . 3 Projectile 1 | . . 1 AOE . | . . . Terrain Rammed . | . . . Walls Destroyed . | . . . Machines Disabled . | . . . Actions | -11 -10 -10 --------- Run | Yrd Mat Sub Total 3599 | . 1060 2539 Wait 115 | . 85 30 Move 3173 | . 855 2318 Hop . | . . . Pick Up 40 | . 21 19 Fast Attach 10 | . 4 6 Attach 3 | . 1 2 Detach 2 | . 1 1 Swap 34 | . 6 28 Drop 34 | . 14 20 Fire 109 | . 55 54 Melee 60 | . . 60 Ram . | . . . Kick 9 | . 9 . Crush . | . . . Escape Stasis . | . . . Rewire . | . . . Trap 9 | . 9 . Miscellaneous 1 | . . 1 Route ------- -11/Scrapyard -10/Materials (discovered 6 exits: [*Mat x3] / [*Min x2] / *Sub) -10/Subcaves (discovered 3 exits: [*Mat x2] / [*Scr]) History --------- Turn | Location | Event 1 | -11/Scrapyard | Discovered new exit (range 0) 1 | -11/Scrapyard | Entered Materials 2 | -10/Materials | Met a group of wandering Federalists 67 | -10/Materials | Discovered new exit (range 15) 309 | -10/Materials | Build established: Mutant 400 | -10/Materials | Discovered new exit (range 14) 576 | -10/Materials | Discovered new exit (range 13) 1162 | -10/Materials | Repaired Aluminum Leg 1189 | -10/Materials | Repaired Aluminum Leg 1206 | -10/Materials | Discovered new exit (range 11) 1569 | -10/Materials | Discovered new exit (range 16) 1864 | -10/Materials | Discovered new exit (range 6) 1873 | -10/Materials | Entered Subcaves 1874 | -10/Subcaves | Continued accompanying wandering Federalists (5) 1874 | -10/Subcaves | Approached by a straggling Scientist 2072 | -10/Subcaves | Lost 3 allies 2355 | -10/Subcaves | A swath of the cavern ceiling suddenly collapsed 2986 | -10/Subcaves | Visited 4L-MR0's lab 2993 | -10/Subcaves | Learned Materials terminal intel 3009 | -10/Subcaves | Found Flightbrick 3133 | -10/Subcaves | Visited Clippyterm 3138 | -10/Subcaves | Learned Factory trap positions 3517 | -10/Subcaves | A swath of the cavern ceiling suddenly collapsed 4261 | -10/Subcaves | Discovered new exit (range 7) 4316 | -10/Subcaves | Shifting Twisted Machinery released Sub. Monowheel 4321 | -10/Subcaves | Shifting Twisted Machinery released Battle Cannon 4380 | -10/Subcaves | Ambushed by Subdweller buried in earth 4563 | -10/Subcaves | Shifting Twisted Machinery released Sub. Monowheel 4564 | -10/Subcaves | Shifting Twisted Machinery released Flamer 4610 | -10/Subcaves | Core integrity fell below 50% 4638 | -10/Subcaves | Lost 3 parts (1n2w) 4827 | -10/Subcaves | Shifting Twisted Machinery released Sub. Power Source 4962 | -10/Subcaves | Learned Materials terminal intel 4997 | -10/Subcaves | Disturbed a concealed Subdweller 5107 | -10/Subcaves | Disturbed a concealed Subdweller 5108 | -10/Subcaves | Core integrity fell below 20% 5182 | -10/Subcaves | Disturbed a concealed Subdweller 5440 | -10/Subcaves | Discovered new exit (range 5) 5718 | -10/Subcaves | Destroyed by 3U-4RR(R) with Subdweller Laser Last Messages --------------- 05199_ Acquired 10 matter. 05201_ Dropped Broken Sub. Power Source. 05203_ Acquired 10 matter. 05206_ 4P-59I(R) destroyed. 05233_ Searching scrap... 05233_ Found Sub. Optics. 05233_ Found 60 Matter. 05235_ Searching scrap... 05235_ Found Mak. Kinetic Plating. 05235_ Found 32 Matter. 05237_ Searching scrap... 05237_ Found Sub. Power Source. 05237_ Found Shrapnel Trap. 05237_ Found 55 Matter. 05424_ Sub. Monowheel melted. 05424_ 1G-TNY(R) destroyed. 05440_ EXIT=FOUND 05448_ MG-A6S(R) destroyed. 05705_ Destroyed Flight Unit. 05705_ S-10 Pest destroyed. Map ----- +----------------------------------------------------+ | | | | | ?????????????????????????????????????????????????? | | ?????????????????????????????????????????????????? | | ?????????????????????????????????????????????????? | | ?????????????????????????????????????????????????? | | ?????????????????????????????????????????????????? | | ?????????????????????????????????????????????????? | | ?????????????????????????????????????????????????? | | ?????????????????????????????????????????????????? | | ?????????????????????????????????????????????????? | | ?????????????????????????????????????????????????? | | ?????????????????????????????????????????????????? | | ?????????????????????????????????????????????????? | | ?????????????????????????????????????????????????? | | ?????????????????????????????????????????????????? | | ####??????????####???????????????????????#####???? | | #######???## #??????????????????????## ####? | | ## # ##### #??????????????????????# ## | | " "#"## ##????????????#####????# # | | # " #???????????## ###### # | | " ############# ## ## | | """#;# # # < ##? | | R R" %% ##?? | | * %[ # ##??? | | !%&"# ####### @## ##### ### #???# | | "" " ## ##?????#######??## #?## #??## | | ## ### ##???????????????# ##??# #?## | | ####### #???????????????## ##???## ##?# | | && #????#####??????????????## ##????###?## | | & #???????????????????????# #####???## | | & ""#???????????????????????# ## ## ##### | | "##??????????????????????## ## | | ! ##?????????????????????### | | ##?????????????????????## # # #### | | #??????????????????????# #### #??###### | | #????????????????????### ##??#######???## | | ##??????????????????## ####??????# #??## | | #????????????????### ##????????# #?## | | # ##???????????????# ###????????# #?## | | ## #???????????????# #??######## #??# | | # #???????????????# #??# #??## | | # ##???????????????# #??# ###??# | | #????????????????# #?## ### #?## ### | | #????????????????# ### ##?## ### #?? | | #????????????????# #???## ##### ##?? | | ##???????????????# #????# ##?# #??? | | #???????????????# #????# #####??? | | ###???????????????# #???## ##????? | | # ##????????????????# #### ###??? | +----------------------------------------------------+ Best States ------------- Heat Dissipation 39 Energy Generation 15 Energy Capacity 250 Matter Stores 300 Matter Capacity 300 Sight Range 21 Terrain Scan Density 10 Armor Coverage 800 Evasion (%) 55 Recoil Reduction 2 Item Schematics ----------------- None Robot Schematics ------------------ None Fabricated ------------ Nothing Repaired ---------- Aluminum Leg | 47% | -10/Materials Aluminum Leg | 62% | -10/Materials Studied --------- None Alien Tech Used ----------------- None Achievements -------------- None Challenges ------------ None Game ------ Seed WaveCoreInsulator Manual? 0 Play Time 00:24:30 Cumulative 225.1 hours Start 2025.12.23 @ 09:09:41 End 2025.12.23 @ 09:37:32 Sessions 1 Manual Loads 0 Difficulty Rogue Special Mode None Game No. 306 Rogue 305 Adventurer 1 Explorer 0 Win Type - Total 2 Types 1/0/0/1/0/0/0/0/0/0 Lore% 67 Gallery% 62 Achievement% 55 Wizard Run 0 Options --------- Layout 0 ASCII 0 Keyboard 0 Movement Numpad Keybinds 0 Fullscreen 1 Font 24/Smallcaps Map View 76x50 Zoom Use 0% Tactical HUD 1 Map Filters NONE Filters NONE Steam 1 RUN: 58a9080f-4f07-49b9-becd-d82a727e8a79